bitfinex-derivatives/quotes_BTCF0:USTF0_20260106
["timestamp","ask_amount","ask_price","bid_price","bid_amount"]
[1767719818928,0.03169752,92626.0,92609.0,0.010801]
[1767719819132,0.03169752,92626.0,92602.0,0.0979812]
[1767719819133,0.0108,92621.0,92602.0,0.0979812]
[1767719819428,0.02270707,92620.0,92605.0,0.010802]
[1767719819623,0.05440459,92619.0,92602.0,0.010802]
[1767719819824,0.02270707,92618.0,92602.0,0.010802]
[1767719820017,0.03169752,92619.0,92602.0,0.010802]
[1767719820328,0.0227061,92618.0,92603.0,0.010802]
[1767719820528,0.03169752,92619.0,92603.0,0.010802]
[1767719820821,0.03169752,92615.0,92600.0,0.09184]
[1767719821020,0.02270461,92614.0,92600.0,0.09184]
[1767719821214,0.03169752,92615.0,92600.0,0.09184]
[1767719821421,0.0108,92625.0,92601.0,0.09601375]
[1767719821628,0.02269068,92624.0,92603.0,0.09601375]
[1767719821931,0.11453068,92623.0,92607.0,0.010802]
[1767719822222,0.02269068,92622.0,92607.0,0.010802]
[1767719822428,0.02269068,92621.0,92605.0,0.09601375]
[1767719822627,0.02269068,92620.0,92606.0,0.010802]
[1767719822822,0.02269068,92619.0,92605.0,0.09601375]
[1767719823026,0.03139276,92616.0,92600.0,0.09184]
[1767719823216,0.06488444,92615.0,92600.0,0.06984]
[1767719823417,0.09184,92622.0,92591.0,0.09601375]
[1767719823418,0.010801,92609.0,92593.0,0.09184]
[1767719823627,0.02269068,92608.0,92593.0,0.09184]
[1767719823925,0.03139276,92606.0,92593.0,0.03138923]
[1767719824127,0.05408344,92605.0,92593.0,0.03138923]
[1767719824317,0.02269068,92604.0,92593.0,0.04219223]
[1767719824519,0.02269068,92604.0,92590.0,0.010804]
[1767719825528,0.02269068,92604.0,92586.0,0.09184]
[1767719825716,0.02269068,92604.0,92592.0,0.010803]
[1767719826225,0.02269068,92603.0,92589.0,0.010804]
[1767719826433,0.02269068,92602.0,92589.0,0.010804]
[1767719826731,0.02269068,92601.0,92586.0,0.102644]
[1767719826928,0.06488544,92600.0,92579.0,0.09400033]
[1767719827134,0.03139276,92598.0,92580.0,0.010805]
[1767719827321,0.12724381,92610.0,92580.0,0.010805]
[1767719827322,6.8e-07,92597.0,92584.0,0.03331235]
[1767719827627,0.010799,92627.0,92583.0,0.09601375]
[1767719827628,0.03139276,92606.0,92583.0,0.09601375]
[1767719827934,0.03139276,92603.0,92587.0,0.010804]
[1767719828125,0.12323276,92608.0,92592.0,0.010803]
[1767719828424,0.12323276,92608.0,92585.0,0.1293261]
[1767719828425,0.03139276,92607.0,92587.0,0.010804]
[1767719828831,0.03139276,92607.0,92589.0,0.010804]
[1767719829018,0.03139276,92607.0,92591.0,0.010803]
[1767719829222,0.03139276,92607.0,92588.0,0.010804]
[1767719829426,0.03139276,92599.0,92582.0,0.010804]
[1767719829829,0.03139276,92595.0,92579.0,0.00216033]
[1767719830123,0.03139276,92593.0,92579.0,0.00216033]
[1767719830324,0.03139276,92607.0,92579.0,0.09817408]
[1767719830523,0.12323276,92606.0,92584.0,0.010804]
[1767719830726,0.03139276,92603.0,92584.0,0.010804]
[1767719830921,0.03139276,92603.0,92580.0,0.09601375]
[1767719830922,0.13403476,92602.0,92581.0,0.010805]
[1767719831231,0.03139276,92602.0,92580.0,0.08881875]
[1767719831429,0.09184,92601.0,92586.0,0.010804]
[1767719831919,0.03139276,92609.0,92589.0,0.010804]
[1767719832119,0.09184,92608.0,92583.0,0.03331235]
[1767719833030,0.09570707,92636.0,92605.0,0.03331235]
[1767719833222,0.09184,92635.0,92623.0,0.0108]
[1767719833426,0.10720715,92642.0,92617.0,0.09601375]
[1767719833725,0.01150008,92642.0,92629.0,0.010799]
[1767719833926,0.01150008,92642.0,92619.0,0.09601375]
[1767719833927,0.09570707,92649.0,92631.0,0.010799]
[1767719834230,0.010798,92641.0,92620.0,0.03331235]
[1767719834533,0.09188,92648.0,92619.0,0.0108]
[1767719834534,0.10650507,92639.0,92619.0,0.0108]
[1767719834934,0.09570707,92639.0,92617.0,0.09601375]
[1767719835139,0.09570707,92639.0,92623.0,0.0108]
[1767719835620,0.01117294,92649.0,92615.0,0.09188]
[1767719835621,0.01701742,92654.0,92633.0,0.010798]
[1767719835820,0.01701742,92654.0,92615.0,0.09188]
[1767719835821,0.09184,92653.0,92630.0,0.09601375]
[1767719836325,0.010796,92652.0,92631.0,0.010799]
[1767719837321,0.09184,92653.0,92633.0,0.010798]
[1767719837531,0.102636,92653.0,92633.0,0.010798]
[1767719838333,0.010797,92650.0,92630.0,0.10681275]
[1767719838526,0.102636,92653.0,92630.0,0.10681275]
[1767719838726,0.102636,92653.0,92630.0,0.09181275]
[1767719839229,0.01551943,92649.0,92625.0,0.09184]
[1767719839425,0.02295573,92648.0,92625.0,0.09184]
[1767719839629,0.02295573,92648.0,92627.0,0.010799]
[1767719840937,0.010797,92646.0,92627.0,0.010799]
[1767719841236,0.02295573,92645.0,92627.0,0.010799]
[1767719841537,0.02295573,92644.0,92627.0,0.010799]
[1767719841738,0.02295573,92643.0,92627.0,0.010799]
[1767719842039,0.010797,92647.0,92627.0,0.010799]
[1767719842226,0.02296391,92646.0,92627.0,0.010799]
[1767719842430,0.02296391,92645.0,92627.0,0.010799]
[1767719842638,0.02296391,92644.0,92627.0,0.010799]
[1767719842843,0.02296391,92643.0,92627.0,0.010799]
[1767719843035,0.02296366,92642.0,92627.0,0.010799]
[1767719843236,0.02296366,92641.0,92627.0,0.010799]
[1767719843542,0.02296366,92640.0,92627.0,0.010799]
[1767719843741,0.02296366,92639.0,92627.0,0.010799]
[1767719843941,0.02296366,92638.0,92627.0,0.010799]
[1767719844133,0.02296366,92637.0,92627.0,0.010799]
[1767719844442,0.02296366,92636.0,92627.0,0.010799]
[1767719844742,0.02296366,92635.0,92627.0,0.010799]
[1767719844941,0.02296366,92634.0,92627.0,0.010799]
[1767719845136,0.02296366,92633.0,92627.0,0.010799]
[1767719845338,6.6e-07,92632.0,92627.0,0.10681275]
[1767719845641,0.010797,92645.0,92627.0,0.10681275]
[1767719846343,0.01471768,92646.0,92629.0,0.010799]
[1767719846545,0.01471768,92646.0,92627.0,0.09181275]
[1767719847141,0.01471768,92646.0,92629.0,0.010799]
[1767719847341,0.010797,92645.0,92627.0,0.10261175]
[1767719847541,0.01496595,92644.0,92627.0,0.010799]
[1767719848937,0.01496595,92644.0,92629.0,0.010799]
[1767719849134,0.09570707,92654.0,92631.0,0.1293261]
[1767719849440,0.09570707,92654.0,92625.0,0.102639]
[1767719849441,0.09184,92671.0,92655.0,0.09601375]
[1767719849633,0.09184,92671.0,92646.0,0.09184]
[1767719849835,0.09184,92671.0,92657.0,0.010796]
[1767719850033,0.09184,92671.0,92644.0,0.010797]
[1767719850034,0.09184,92671.0,92654.0,0.010796]
[1767719850445,0.09184,92671.0,92648.0,0.09184]
[1767719850940,0.010792,92687.0,92648.0,0.09184]
[1767719850941,0.03139276,92681.0,92648.0,0.09184]
[1767719851147,0.03139276,92681.0,92663.0,0.010795]
[1767719851148,0.010793,92681.0,92663.0,0.010795]
[1767719851336,0.010793,92681.0,92660.0,0.010795]
[1767719851533,0.03139276,92686.0,92659.0,0.03598786]
[1767719851534,0.09184,92682.0,92663.0,0.010795]
[1767719851740,0.010793,92681.0,92660.0,0.10506934]
[1767719851943,0.010793,92679.0,92660.0,0.10506934]
[1767719852142,0.010794,92675.0,92654.0,0.09427434]
[1767719852640,0.010794,92675.0,92657.0,0.010796]
[1767719853041,0.09184,92682.0,92648.0,0.09184]
[1767719853042,0.03330138,92670.0,92648.0,0.09427434]
[1767719853244,0.03330138,92670.0,92646.0,0.03598786]
[1767719853245,0.03330138,92667.0,92647.0,0.09184]
[1767719853443,0.010795,92665.0,92647.0,0.09184]
[1767719854039,0.03330138,92666.0,92647.0,0.102637]
[1767719854237,0.03330138,92666.0,92647.0,0.093637]
[1767719854639,0.010795,92665.0,92647.0,0.08284]
[1767719854841,0.010795,92661.0,92647.0,0.08284]
[1767719855149,0.04409638,92664.0,92647.0,0.08284]
[1767719855948,0.03330138,92662.0,92641.0,0.09427434]
[1767719856352,0.03330138,92662.0,92630.0,0.19568]
[1767719856353,0.010796,92655.0,92636.0,0.010798]
[1767719856945,0.010797,92651.0,92632.0,0.09427434]
[1767719857145,0.010797,92651.0,92632.0,0.10507334]
[1767719857449,0.010795,92667.0,92632.0,0.10507334]
[1767719857450,0.09184,92655.0,92645.0,0.1302622]
[1767719857645,0.102636,92658.0,92645.0,0.09427434]
[1767719857952,0.09184,92658.0,92641.0,0.010798]
[1767719858252,0.010795,92661.0,92643.0,0.010797]
[1767719858446,0.09184,92660.0,92645.0,0.010797]
[1767719858647,0.09184,92660.0,92642.0,0.010797]
[1767719858950,0.03330138,92649.0,92630.0,0.09184]
[1767719859158,0.010798,92641.0,92630.0,0.09184]
[1767719859855,0.12338506,92647.0,92630.0,0.09184]
[1767719860045,0.010798,92637.0,92619.0,0.03598786]
[1767719860241,0.010798,92639.0,92620.0,0.10264]
[1767719860646,0.010798,92642.0,92622.0,0.0108]
[1767719861151,0.010798,92638.0,92620.0,0.09184]
[1767719861353,0.09008368,92641.0,92620.0,0.09184]
[1767719861552,0.09008368,92641.0,92606.0,0.1203]
[1767719861553,0.03330138,92634.0,92613.0,0.09184]
[1767719861857,0.010797,92643.0,92606.0,0.09427434]
[1767719861858,0.03330138,92630.0,92606.0,0.09427434]
[1767719862152,0.03330138,92630.0,92606.0,0.07827434]
[1767719862555,0.010799,92628.0,92608.0,0.010801]
[1767719862754,0.03330138,92630.0,92606.0,0.07827434]
[1767719862755,0.010799,92626.0,92606.0,0.07827434]
[1767719862963,0.010799,92627.0,92607.0,0.010802]
[1767719864155,0.03330138,92629.0,92606.0,0.07827434]
[1767719864156,0.09184,92626.0,92606.0,0.07827434]
[1767719864350,0.12338506,92613.0,92591.0,0.09427434]
[1767719864550,0.010802,92602.0,92588.0,0.09184]
[1767719864857,0.03330138,92602.0,92585.0,0.09184]
[1767719865159,0.24544,92624.0,92585.0,0.09184]
[1767719865160,0.03330138,92622.0,92598.0,0.09427434]
[1767719865348,0.03330138,92622.0,92585.0,0.09184]
[1767719865349,0.03330138,92614.0,92591.0,0.09427434]
[1767719865655,0.03330138,92612.0,92591.0,0.09427434]
[1767719865852,0.010802,92603.0,92591.0,0.09427434]
[1767719866056,0.02185453,92602.0,92585.0,0.09184]
[1767719866257,0.010802,92601.0,92584.0,0.09427434]
[1767719866447,0.010802,92601.0,92580.0,0.03598786]
[1767719866448,0.02185453,92600.0,92581.0,0.09184]
[1767719866648,0.010802,92601.0,92581.0,0.09184]
[1767719866953,0.0218467,92600.0,92581.0,0.09184]
[1767719867153,0.010802,92604.0,92581.0,0.09184]
[1767719867348,0.02183807,92603.0,92581.0,0.09184]
[1767719867550,0.02183807,92602.0,92581.0,0.09184]
[1767719867756,0.02183807,92601.0,92581.0,0.09184]
[1767719867956,0.02183807,92600.0,92581.0,0.09184]
[1767719868258,0.010803,92599.0,92581.0,0.09184]
[1767719868459,0.03330138,92602.0,92581.0,0.09184]
[1767719868666,0.010803,92598.0,92579.0,0.00216033]
[1767719868957,0.03330138,92600.0,92579.0,0.00216033]
[1767719869158,0.01966566,92599.0,92579.0,0.00216033]
[1767719869356,0.03330138,92600.0,92579.0,0.00216033]
[1767719869560,0.12338506,92600.0,92579.0,0.00216033]
[1767719869744,0.03330138,92598.0,92577.0,0.00796533]
[1767719869950,0.03330138,92598.0,92574.0,0.09427434]
[1767719870160,0.010803,92596.0,92574.0,0.09427434]
[1767719870358,0.010803,92596.0,92574.0,0.10507934]
[1767719870561,0.04410338,92603.0,92581.0,0.010805]
[1767719870755,0.03330138,92603.0,92578.0,0.09427434]
[1767719871055,0.12338506,92601.0,92578.0,0.09427434]
[1767719871262,0.03330138,92599.0,92578.0,0.09427434]
[1767719871466,0.010803,92596.0,92573.0,0.10508034]
[1767719871659,0.09184,92604.0,92569.0,0.010806]
[1767719871660,0.010804,92590.0,92569.0,0.010806]
[1767719871858,0.03330138,92592.0,92571.0,0.010806]
[1767719872055,0.03330138,92587.0,92560.0,0.09427434]
[1767719872255,0.03330138,92587.0,92568.0,0.010806]
[1767719872565,0.09184,92590.0,92571.0,0.010806]
[1767719872762,0.09184,92590.0,92571.0,0.10508034]
[1767719872962,0.09184,92590.0,92574.0,0.010805]
[1767719873156,0.09184,92590.0,92571.0,0.09427434]
[1767719873157,0.010802,92606.0,92579.0,0.03598786]
[1767719873462,0.010802,92606.0,92564.0,0.010807]
[1767719873463,0.010802,92604.0,92582.0,0.10507834]
[1767719873660,0.010802,92604.0,92583.0,0.09427434]
[1767719874163,0.010802,92602.0,92583.0,0.09427434]
[1767719874660,0.010802,92602.0,92576.0,0.18611434]
[1767719874958,0.03330138,92593.0,92574.0,0.010805]
[1767719875160,0.09184,92605.0,92584.0,0.010804]
[1767719875350,0.03330138,92612.0,92590.0,0.010804]
[1767719875554,0.09188,92611.0,92590.0,0.09427434]
[1767719875754,0.09188,92610.0,92593.0,0.010803]
[1767719876055,0.09188,92610.0,92596.0,0.10507734]
[1767719876255,0.09188,92610.0,92596.0,0.09427434]
[1767719876666,0.09188,92618.0,92602.0,0.09427434]
[1767719876965,0.09188,92621.0,92606.0,0.09427434]
[1767719877354,0.09188,92621.0,92604.0,0.010802]
[1767719877555,0.10268,92621.0,92599.0,0.13086422]
[1767719877756,0.09188,92621.0,92601.0,0.010802]
[1767719877956,0.09188,92621.0,92601.0,0.10263915]
[1767719878159,0.09188,92621.0,92601.0,0.010802]
[1767719878160,0.12555611,92619.0,92601.0,0.010802]
[1767719878562,0.12555611,92619.0,92598.0,0.010803]
[1767719878759,0.12555611,92619.0,92600.0,0.010802]
[1767719879161,0.12555611,92619.0,92596.0,0.18371715]
[1767719879463,0.09188,92621.0,92597.0,0.09183715]
[1767719879664,0.09188,92621.0,92601.0,0.010802]
[1767719879864,0.10268,92621.0,92598.0,0.09183715]
[1767719881155,0.10268,92621.0,92599.0,0.010802]
[1767719881665,0.0108,92619.0,92599.0,0.010802]
[1767719881863,0.010801,92616.0,92598.0,0.09183715]
[1767719882059,0.03376523,92608.0,92589.0,0.09188]
[1767719882255,0.01149383,92630.0,92610.0,0.010801]
[1767719882256,0.02229283,92630.0,92610.0,0.010801]
[1767719882463,0.010799,92628.0,92608.0,0.09728761]
[1767719882656,0.01133688,92631.0,92609.0,0.09728761]
[1767719882865,0.09188,92636.0,92621.0,0.09728761]
[1767719883056,0.09188,92643.0,92624.0,0.09728761]
[1767719883254,0.010798,92640.0,92624.0,0.09728761]
[1767719883452,0.010798,92640.0,92618.0,0.0108]
[1767719883657,0.010798,92638.0,92618.0,0.0108]
[1767719884067,0.09188,92643.0,92617.0,0.09728761]
[1767719884068,0.010798,92636.0,92617.0,0.09728761]
[1767719884268,0.18469167,92643.0,92610.0,0.09728761]
[1767719884269,0.010798,92634.0,92610.0,0.09728761]
[1767719884472,0.03376523,92636.0,92611.0,0.18916761]
[1767719884669,0.010798,92641.0,92619.0,0.0108]
[1767719884976,0.102677,92643.0,92622.0,0.09728761]
[1767719885265,0.102677,92643.0,92614.0,0.12856612]
[1767719885266,0.03376523,92640.0,92614.0,0.12856612]
[1767719885460,0.05594169,92639.0,92614.0,0.09728761]
[1767719885660,0.1265769,92639.0,92614.0,0.09728761]
[1767719885865,0.010798,92639.0,92622.0,0.09728761]
[1767719886063,0.03376523,92637.0,92615.0,0.08428761]
[1767719886254,0.010799,92633.0,92612.0,0.010801]
[1767719886661,0.1265769,92635.0,92593.0,0.03127851]
[1767719886862,0.0108,92623.0,92604.0,0.010802]
[1767719887170,0.0108,92623.0,92597.0,0.03127851]
[1767719887171,0.0108,92621.0,92600.0,0.010802]
[1767719887965,0.03376523,92626.0,92598.0,0.04208151]
[1767719888166,0.1265769,92626.0,92599.0,0.09728761]
[1767719888366,0.0108,92621.0,92600.0,0.10808961]
[1767719888968,0.0108,92621.0,92602.0,0.010802]
[1767719889179,0.010801,92611.0,92599.0,0.09184]
[1767719889381,0.010802,92605.0,92593.0,0.09728761]
[1767719889684,0.03376523,92615.0,92593.0,0.09728761]
[1767719889867,0.010802,92602.0,92593.0,0.09728761]
[1767719890475,0.010803,92596.0,92579.0,0.03127851]
[1767719890678,0.09281167,92603.0,92580.0,0.010805]
[1767719890979,0.10361367,92602.0,92580.0,0.010805]
[1767719891167,0.010803,92598.0,92578.0,0.03127851]
[1767719891571,0.010803,92596.0,92578.0,0.03127851]
[1767719891968,0.010803,92593.0,92578.0,0.03127851]
[1767719892178,0.09281167,92603.0,92577.0,0.09184]
[1767719892179,0.010804,92590.0,92577.0,0.09184]
[1767719892478,0.010803,92594.0,92577.0,0.09184]
[1767719892666,0.09281167,92600.0,92577.0,0.09184]
[1767719892984,0.010802,92602.0,92577.0,0.09184]
[1767719892985,0.09281167,92597.0,92577.0,0.09184]
[1767719893172,0.09188,92596.0,92577.0,0.09184]
[1767719893876,0.09188,92596.0,92577.0,0.07484]
[1767719894376,0.010803,92592.0,92577.0,0.07484]
[1767719894682,0.09188,92596.0,92577.0,0.07484]
[1767719894876,0.010804,92588.0,92577.0,0.07484]
[1767719895082,0.010804,92591.0,92577.0,0.07484]
[1767719895774,0.02246007,92590.0,92577.0,0.07484]
[1767719895973,0.02246007,92589.0,92577.0,0.07484]
[1767719896176,0.09188,92596.0,92577.0,0.07484]
[1767719896382,0.02244951,92595.0,92577.0,0.07484]
[1767719896582,0.1265769,92592.0,92570.0,0.09188]
[1767719896774,0.010804,92587.0,92570.0,0.09188]
[1767719896969,0.010804,92590.0,92570.0,0.09188]
[1767719897177,0.010804,92590.0,92570.0,0.12315851]
[1767719897374,0.09188,92596.0,92571.0,0.12856612]
[1767719897570,0.09188,92596.0,92584.0,0.03127851]
[1767719897771,0.09188,92598.0,92584.0,0.12856612]
[1767719897978,0.09188,92599.0,92584.0,0.12856612]
[1767719898284,0.010803,92596.0,92584.0,0.09728761]
[1767719898684,0.102683,92599.0,92584.0,0.09728761]
[1767719900494,0.09188,92599.0,92584.0,0.09728761]
[1767719900784,0.09188,92599.0,92583.0,0.13937012]
[1767719901390,0.09188,92600.0,92583.0,0.12856612]
[1767719901583,0.09188,92600.0,92583.0,0.12456612]
[1767719901584,0.010803,92598.0,92583.0,0.12456612]
[1767719901776,0.09188,92600.0,92583.0,0.12456612]
[1767719901777,0.010803,92596.0,92583.0,0.12456612]
[1767719901979,0.010803,92593.0,92577.0,0.03127851]
[1767719902284,0.09281167,92594.0,92570.0,0.09188]
[1767719902490,0.010804,92588.0,92570.0,0.09188]
[1767719902882,0.010803,92591.0,92574.0,0.03127851]
[1767719903081,0.09188,92600.0,92576.0,0.03127851]
[1767719903284,0.102682,92600.0,92581.0,0.010805]
[1767719903583,0.102682,92600.0,92576.0,0.03127851]
[1767719903584,0.010803,92598.0,92579.0,0.03127851]
[1767719903780,0.09188,92600.0,92579.0,0.03127851]
[1767719903991,0.010803,92592.0,92577.0,0.09728761]
[1767719904285,0.010804,92587.0,92568.0,0.010806]
[1767719904504,0.10361567,92587.0,92568.0,0.010806]
[1767719904880,0.010803,92593.0,92574.0,0.010805]
[1767719905089,0.010803,92597.0,92575.0,0.12856612]
[1767719905381,0.010804,92586.0,92567.0,0.010806]
[1767719905596,0.010804,92589.0,92569.0,0.010806]
[1767719905886,0.09281167,92591.0,92570.0,0.010806]
[1767719906092,0.09281167,92591.0,92567.0,0.12856612]
[1767719906093,0.09281167,92591.0,92574.0,0.010805]
[1767719906287,0.010803,92593.0,92576.0,0.010805]
[1767719906486,0.02197315,92593.0,92574.0,0.12856612]
[1767719906886,0.010803,92591.0,92574.0,0.12856612]
[1767719907394,0.010804,92588.0,92574.0,0.12856612]
[1767719907894,0.010803,92591.0,92572.0,0.13937212]
[1767719908094,0.010803,92592.0,92576.0,0.13937112]
[1767719908397,0.01098046,92593.0,92565.0,0.09188]
[1767719908398,0.01098046,92593.0,92581.0,0.12856612]
[1767719908583,0.09281167,92612.0,92588.0,0.12856612]
[1767719908779,0.09188,92611.0,92591.0,0.12856612]
[1767719909093,0.010802,92602.0,92583.0,0.09728761]
[1767719909490,0.010802,92602.0,92583.0,0.07728761]
[1767719909799,0.02230626,92601.0,92583.0,0.07728761]
[1767719909998,0.02230626,92600.0,92584.0,0.010804]
[1767719910187,0.02230626,92599.0,92584.0,0.010804]
[1767719910495,0.02230626,92598.0,92581.0,0.010805]
[1767719910690,0.02230626,92597.0,92580.0,0.010805]
[1767719910886,0.02230626,92596.0,92580.0,0.010805]
[1767719911087,0.02230626,92595.0,92579.0,0.09188]
[1767719911287,0.2184569,92611.0,92583.0,0.03127851]
[1767719911489,0.2184569,92611.0,92585.0,0.10259518]
[1767719911697,0.010802,92605.0,92585.0,0.10259518]
[1767719911994,0.09164655,92610.0,92585.0,0.09179118]
[1767719912299,0.010803,92591.0,92571.0,0.010806]
[1767719912503,0.09164655,92592.0,92569.0,0.09188]
[1767719913191,0.010804,92591.0,92570.0,0.010806]
[1767719913394,0.010804,92591.0,92569.0,0.09188]
[1767719913395,0.10244955,92592.0,92569.0,0.21878021]
[1767719913690,0.10244955,92592.0,92575.0,0.010805]
[1767719913895,0.010804,92590.0,92571.0,0.010806]
[1767719914090,0.10244955,92592.0,92569.0,0.12690021]
[1767719914393,0.09188,92595.0,92576.0,0.12690021]
[1767719914394,0.102683,92595.0,92576.0,0.12690021]
[1767719914700,0.09188,92595.0,92576.0,0.12690021]
[1767719915397,0.010804,92589.0,92569.0,0.13770621]
[1767719915593,0.010804,92587.0,92568.0,0.09188]
[1767719915796,0.09164655,92594.0,92569.0,0.09179118]
[1767719915989,0.12505267,92594.0,92569.0,0.09179118]
[1767719916301,0.010801,92610.0,92587.0,0.12690021]
[1767719916599,0.09164655,92601.0,92571.0,0.12690021]
[1767719916791,0.09188,92609.0,92568.0,0.09188]
[1767719916792,0.12505267,92591.0,92568.0,0.09188]
[1767719916991,0.010804,92587.0,92568.0,0.102686]
[1767719917293,0.010804,92587.0,92568.0,0.093686]
[1767719917491,0.010804,92587.0,92563.0,0.00011743]
[1767719917492,0.09164655,92586.0,92563.0,0.00011743]
[1767719917704,0.03340612,92583.0,92563.0,0.00011743]
[1767719917886,0.12505267,92580.0,92563.0,0.00011743]
[1767719918087,0.010806,92573.0,92563.0,0.00011743]
[1767719918702,0.010805,92574.0,92563.0,0.00011743]
[1767719919594,0.09164655,92578.0,92563.0,0.00011743]
[1767719919595,0.010806,92572.0,92563.0,0.00011743]
[1767719919790,0.010805,92577.0,92563.0,0.00011743]
[1767719920096,0.09164655,92578.0,92549.0,0.00216103]
[1767719920097,0.03340612,92569.0,92549.0,0.00216103]
[1767719920303,0.12505267,92563.0,92549.0,0.00216103]
[1767719920598,0.010807,92557.0,92535.0,0.09179118]
[1767719920898,0.09164655,92561.0,92535.0,0.09179118]
[1767719920899,0.09197272,92556.0,92535.0,0.09179118]
[1767719921094,0.010808,92554.0,92528.0,0.09188]
[1767719921300,0.010808,92551.0,92530.0,0.010811]
[1767719921487,8.007e-05,92550.0,92530.0,0.010811]
[1767719921685,0.10291787,92550.0,92528.0,0.010811]
[1767719921889,0.10291787,92550.0,92519.0,0.00216173]
[1767719921890,0.12505267,92543.0,92519.0,0.00216173]
[1767719922088,0.00010842,92549.0,92519.0,0.00216173]
[1767719922089,0.09164655,92541.0,92519.0,0.00216173]
[1767719922291,0.09188,92540.0,92534.0,0.01081]
[1767719922488,0.09188,92539.0,92531.0,0.01081]
[1767719922902,4.7e-07,92542.0,92524.0,0.03510903]
[1767719923092,0.09164655,92563.0,92541.0,0.010809]
[1767719923399,0.010807,92560.0,92540.0,0.09179118]
[1767719923599,0.10245355,92560.0,92537.0,0.01081]
[1767719923788,0.010808,92554.0,92533.0,0.10260118]
[1767719923990,0.04469481,92560.0,92525.0,0.09179118]
[1767719923991,0.10245455,92552.0,92525.0,0.09179118]
[1767719924190,0.09164655,92549.0,92525.0,0.09179118]
[1767719924701,0.010809,92544.0,92520.0,0.010812]
[1767719924891,0.09164655,92543.0,92523.0,0.010811]
[1767719925093,0.09164655,92543.0,92523.0,0.006811]
[1767719925293,0.09164655,92543.0,92518.0,0.12690021]
[1767719925599,0.09188,92551.0,92515.0,0.010812]
[1767719925600,0.12505267,92538.0,92515.0,0.010812]
[1767719925805,0.18356655,92537.0,92515.0,0.010812]
[1767719926007,0.09164655,92536.0,92515.0,0.010812]
[1767719926191,0.09164655,92535.0,92510.0,0.18367118]
[1767719926508,0.09164655,92548.0,92520.0,0.09179118]
[1767719926695,0.010809,92546.0,92524.0,0.010811]
[1767719926997,0.10245555,92543.0,92520.0,0.09179118]
[1767719927197,0.09164655,92541.0,92520.0,0.010812]
[1767719927700,0.12532612,92542.0,92519.0,0.00216173]
[1767719927701,0.1246469,92540.0,92519.0,0.00216173]
[1767719927888,0.01081,92537.0,92519.0,0.00216173]
[1767719928093,0.01081,92538.0,92519.0,0.00216173]
[1767719928295,0.02217642,92537.0,92519.0,0.00216173]
[1767719928494,0.01081,92538.0,92519.0,0.00216173]
[1767719928801,0.12532612,92542.0,92519.0,0.00216173]
[1767719928802,0.010811,92530.0,92519.0,0.00216173]
[1767719929004,0.09192,92530.0,92519.0,0.00216173]
[1767719930005,0.09192,92529.0,92520.0,0.010812]
[1767719930190,0.09192,92528.0,92520.0,0.010812]
[1767719930394,0.09164655,92539.0,92519.0,0.01297373]
[1767719930594,0.11407201,92538.0,92519.0,0.00216173]
[1767719930797,0.03340612,92536.0,92519.0,0.00216173]
[1767719931091,0.09192,92535.0,92519.0,0.00216173]
[1767719932001,0.21697267,92535.0,92519.0,0.00216173]
[1767719932591,0.09164655,92534.0,92519.0,0.00216173]
[1767719932796,0.12505267,92532.0,92519.0,0.00216173]
[1767719933004,0.03340612,92559.0,92519.0,0.03510903]
[1767719933203,0.05965849,92564.0,92532.0,0.01081]
[1767719933204,0.03340612,92554.0,92532.0,0.01081]
[1767719933405,0.03340612,92548.0,92529.0,0.010811]
[1767719933596,0.27212,92558.0,92520.0,0.09179118]
[1767719933597,0.03340612,92546.0,92520.0,0.09179118]
[1767719933792,0.12532612,92545.0,92520.0,0.09179118]
[1767719934895,0.03340612,92544.0,92513.0,0.09192]
[1767719935094,0.09164655,92535.0,92512.0,0.09179118]
[1767719935299,0.03340612,92540.0,92512.0,0.09179118]
[1767719935494,0.10273,92539.0,92519.0,0.010812]
[1767719935901,0.12532612,92539.0,92521.0,0.010812]
[1767719936106,0.12532612,92539.0,92512.0,0.09179118]
[1767719936307,0.12532612,92539.0,92522.0,0.010811]
[1767719936507,0.21697267,92539.0,92522.0,0.010811]
[1767719936704,0.03340612,92538.0,92518.0,0.010812]
[1767719937008,0.03340612,92537.0,92518.0,0.010812]
[1767719937205,0.04421612,92537.0,92518.0,0.010812]
[1767719937406,0.09192,92536.0,92518.0,0.010812]
[1767719937711,0.09192,92536.0,92512.0,0.09179118]
[1767719937907,0.09192,92536.0,92519.0,0.010812]
[1767719939115,0.10273,92536.0,92519.0,0.010812]
[1767719939298,0.09192,92536.0,92519.0,0.010812]
[1767719939913,0.03250893,92535.0,92519.0,0.010812]
[1767719940100,0.03250893,92534.0,92512.0,0.09179118]
[1767719940301,0.03250893,92532.0,92515.0,0.010812]
[1767719940501,0.09855157,92533.0,92510.0,0.09268051]
[1767719940703,0.1310605,92524.0,92506.0,0.010813]
[1767719941013,0.09192,92525.0,92508.0,0.010813]
[1767719941313,0.010811,92524.0,92507.0,0.010813]
[1767719941512,0.09192,92525.0,92511.0,0.010813]
[1767719941708,0.09192,92525.0,92512.0,0.010813]
[1767719942305,0.09192,92525.0,92509.0,0.010813]
[1767719942502,0.09192,92525.0,92508.0,0.010813]
[1767719943005,0.09192,92525.0,92505.0,0.05878773]
[1767719943315,0.010812,92520.0,92505.0,0.04797473]
[1767719943609,0.010812,92522.0,92505.0,0.04797473]
[1767719943910,0.03205761,92518.0,92505.0,0.04797473]
[1767719944112,0.03205761,92515.0,92496.0,0.102735]
[1767719944313,0.12397761,92515.0,92501.0,0.010814]
[1767719944498,0.22059584,92515.0,92493.0,0.010815]
[1767719944703,0.09661823,92513.0,92496.0,0.010815]
[1767719944903,0.09661823,92513.0,92489.0,0.09408243]
[1767719945103,0.09661823,92513.0,92490.0,0.09457837]
[1767719945304,0.12867584,92510.0,92489.0,0.00216243]
[1767719945503,0.09192,92515.0,92490.0,0.09192]
[1767719945504,0.12867584,92506.0,92490.0,0.09192]
[1767719945909,0.12867584,92506.0,92490.0,0.102735]
[1767719946105,0.14129236,92506.0,92490.0,0.09192]
[1767719946307,0.14129236,92506.0,92489.0,0.00216243]
[1767719946308,0.12867584,92506.0,92489.0,0.00216243]
[1767719946612,0.12867584,92506.0,92491.0,0.010815]
[1767719946912,0.06073212,92534.0,92509.0,0.010813]
[1767719946913,0.09661823,92520.0,92509.0,0.010813]